fUST/lending_fUST_20250224
["ID","MTS","AMOUNT","RATE_DAILY","PERIOD"]
[354247245,1740364252884,-1209.438647,0.00014647,2]
[354247246,1740364252893,-1209.438647,0.00014647,2]
[354247247,1740364252902,-151.0,0.00014682,2]
[354247248,1740364252911,-151.0,0.00014684,2]
[354247249,1740364252921,-500.0,0.00014684,2]
[354247250,1740364252930,-3330.56,0.00014684,2]
[354247251,1740364252939,-1935.39,0.00014684,2]
[354247252,1740364252949,-500.0,0.00014684,2]
[354247253,1740364252958,-1348.71,0.00014684,2]
[354247254,1740364252967,-500.0,0.00014684,2]
[354247255,1740364252977,-500.0,0.00014684,2]
[354247256,1740364252986,-151.0,0.00014684,2]
[354247257,1740364252995,-151.0,0.000147,2]
[354247258,1740364253005,-154.7783581,0.00014712,2]
[354247259,1740364253014,-379.23606087,0.00014767,2]
[354247260,1740364253023,-0.97593455,0.00014767,2]
[354247261,1740364253069,-3329.58406545,0.00014767,2]
[354247262,1740364253079,-1935.39,0.00014767,2]
[354247263,1740364253088,-321.6390761,0.00014767,2]
[354247264,1740364253097,-1348.71,0.00014767,2]
[354247265,1740364253107,-500.0,0.00014767,2]
[354247266,1740364253119,-187.0,0.00014796,2]
[354247267,1740364253129,-200.0,0.000148,14]
[354247268,1740364253139,-201.86688892,0.000148,11]
[354247269,1740364253149,-176.39560073,0.00014847,2]
[354247270,1740364529106,198.350573,9.041e-05,2]
[354247272,1740364573440,1501.0,0.00019,120]
[354247340,1740365432910,-300.0,0.00010958,2]
[354247343,1740365432919,-356.18201102,0.00010959,2]
[354247345,1740365432930,-1777.12798898,0.00010959,2]
[354247347,1740365432939,-1940.95,0.00010959,2]
[354247349,1740365432948,-1616.41728234,0.00010959,2]
[354247351,1740365432959,-1.04271766,0.00010959,2]
[354247353,1740365432968,-1347.88,0.00010959,2]
[354247355,1740365432977,-1123.24,0.00010959,2]
[354247357,1740365432986,-936.03,0.00010959,2]
[354247359,1740365432995,-780.02,0.00010959,2]
[354247361,1740365433004,-420.0,0.00012042,2]
[354247363,1740365433013,-271.2186754,0.00012579,2]
[354247365,1740365433022,-180.0,0.00013233,2]
[354247367,1740365433031,-162.33279495,0.00013573,2]
[354247369,1740365433041,-178.67445759,0.00013598,2]
[354247371,1740365433051,-160.34849723,0.00013598,2]
[354247373,1740365433060,-500.0,0.00013673,2]
[354247375,1740365433070,-500.0,0.00013673,2]
[354247377,1740365433079,-146.37845921,0.00013673,2]
[354247381,1740365433092,-353.62154079,0.00013673,2]
[354247384,1740365433101,-500.51458883,0.00013673,2]
[354247387,1740365433110,-240.09867638,0.00013673,2]
[354247390,1740365433120,-500.0,0.00013673,2]
[354247393,1740365433130,-150.14894767,0.00013673,2]
[354247395,1740365433140,-504.13265309,0.00013673,2]
[354247398,1740365433149,-500.0,0.00013673,2]
[354247422,1740365433259,-500.0,0.00013697,2]
[354247424,1740365433269,-500.0,0.00013697,2]
[354247426,1740365433279,-500.0,0.00013697,2]
[354247428,1740365433289,-500.0,0.00013697,2]
[354247430,1740365433299,-500.0,0.00013697,2]
[354247432,1740365433309,-327.73532103,0.00013697,2]
[354247434,1740365433319,-500.0,0.00013697,2]
[354247436,1740365433328,-500.0,0.00013697,2]
[354247438,1740365433338,-500.0,0.00013697,2]
[354247440,1740365433348,-500.0,0.00013697,2]
[354247442,1740365433360,-500.0,0.00013697,2]
[354247444,1740365433370,-562.886442,0.00013697,2]
[354247446,1740365433380,-500.0,0.00013697,2]
[354247449,1740365433390,-500.0,0.00013697,2]
[354247451,1740365433400,-500.0,0.00013697,2]
[354247453,1740365433410,-500.0,0.00013697,2]
[354247455,1740365433419,-500.0,0.00013697,2]
[354247457,1740365433429,-500.0,0.00013697,2]
[354247459,1740365433442,-500.0,0.00013697,2]
[354247461,1740365433452,-500.0,0.00013697,2]
[354247462,1740365433461,-254.97777582,0.00013697,2]
[354247464,1740365433471,-500.0,0.00013697,2]
[354247467,1740365433483,-500.0,0.00013697,2]
[354247468,1740365433493,-500.0,0.00013697,2]
[354247471,1740365433503,-500.0,0.00013697,2]
[354247473,1740365433512,-249.22682349,0.00013698,2]
[354247475,1740365433524,-631.2019315,0.00013698,2]
[354247477,1740365433535,-501.18781957,0.00013698,2]
[354247479,1740365433545,-538.31296627,0.00013698,2]
[354247481,1740365433555,-501.18536471,0.00013698,2]
[354247483,1740365433566,-524.59814083,0.00013698,2]
[354247485,1740365433575,-500.93492925,0.00013698,2]
[354247487,1740365433585,-501.14106178,0.00013698,2]
[354247489,1740365433595,-217.0,0.00013698,60]
[354247491,1740365433604,-500.0,0.00013698,2]
[354247493,1740365433614,-504.42376017,0.00013698,2]
[354247495,1740365433624,-504.70776462,0.00013698,2]
[354247497,1740365433634,-500.0,0.00013698,2]
[354247499,1740365433643,-502.1331722,0.00013698,2]
[354247501,1740365433654,-501.66864795,0.00013698,2]
[354247503,1740365433664,-500.0,0.00013698,2]
[354247505,1740365433673,-490.85396663,0.00013698,2]
[354247507,1740365433686,-9.14603337,0.00013698,2]
[354247509,1740365433696,-502.0394739,0.00013698,2]
[354247511,1740365433707,-459.31998981,0.00013698,2]
[354247514,1740365433716,-500.0,0.00013698,2]
[354247515,1740365433726,-510.60653761,0.00013698,2]
[354247517,1740365433736,-501.45586582,0.00013698,2]
[354247519,1740365433745,-501.55829666,0.00013698,2]
[354247522,1740365433755,-501.50956108,0.00013698,2]
[354247523,1740365433765,-500.0,0.00013698,2]
[354247525,1740365433774,-500.0,0.00013698,2]
[354247527,1740365433783,-500.0,0.00013698,2]
[354247529,1740365433792,-513.20556023,0.00013698,2]
[354247531,1740365433802,-500.0,0.00013698,2]
[354247533,1740365433811,-15.66322199,0.00013698,2]
[354247536,1740365433824,-490.19337728,0.00013698,2]
[354247538,1740365433833,-500.0,0.00013698,2]
[354247540,1740365433843,-505.16406598,0.00013698,2]
[354247542,1740365433852,-168.54965353,0.00013698,2]
[354247544,1740365433861,-506.87579314,0.00013698,2]
[354247545,1740365433871,-1002.87489947,0.00013698,2]
[354247547,1740365433881,-500.0,0.00013698,2]
[354247549,1740365433891,-503.97033054,0.00013698,2]
[354247551,1740365433900,-501.00943599,0.00013698,2]
[354247553,1740365433909,-525.44153984,0.00013698,2]
[354247555,1740365433919,-500.0,0.00013698,2]
[354247557,1740365433930,-500.0,0.00013698,2]
[354247558,1740365433939,-512.84988465,0.00013698,2]
[354247560,1740365433949,-502.13050968,0.00013698,2]
[354247562,1740365433959,-501.72837191,0.00013698,2]
[354247564,1740365433968,-501.90495623,0.00013698,2]
[354247566,1740365433977,-500.0,0.00013698,2]
[354247568,1740365433987,-503.28334982,0.00013698,2]
[354247570,1740365433995,-500.0,0.00013698,2]
[354247572,1740365434004,-503.51101591,0.00013698,2]
[354247574,1740365434014,-500.0,0.00013698,2]
[354247576,1740365434023,-503.18017723,0.00013698,2]
[354247578,1740365434032,-500.0,0.00013698,2]
[354247580,1740365434041,-500.0,0.00013698,2]
[354247582,1740365434050,-500.0,0.00013698,2]
[354247584,1740365434060,-502.73555229,0.00013698,2]
[354247586,1740365434069,-500.0,0.00013698,2]
[354247588,1740365434079,-501.83533017,0.00013698,2]
[354247590,1740365434088,-503.62531757,0.00013698,2]
[354247592,1740365434098,-503.10597956,0.00013698,2]
[354247594,1740365434107,-500.0,0.00013698,2]
[354247596,1740365434116,-500.0,0.00013698,2]
[354247598,1740365434126,-528.32,0.00013698,2]
[354247600,1740365434135,-500.0,0.00013698,2]
[354247602,1740365434145,-500.0,0.00013698,2]
[354247603,1740365434154,-500.0,0.00013698,2]
[354247605,1740365434164,-500.0,0.00013698,2]
[354247607,1740365434174,-500.0,0.00013698,2]
[354247608,1740365434183,-500.92329597,0.00013698,2]
[354247610,1740365434193,-502.44737622,0.00013698,2]
[354247612,1740365434202,-501.1954751,0.00013698,2]
[354247613,1740365434211,-501.42894163,0.00013698,2]
[354247616,1740365434225,-501.25382308,0.00013698,2]
[354247618,1740365434234,-500.0,0.00013698,2]
[354247619,1740365434244,-511.67215265,0.00013698,2]
[354247621,1740365434253,-167.60302411,0.00013698,2]
[354247623,1740365434264,-500.60494542,0.00013698,2]
[354247625,1740365434274,-501.60156015,0.00013698,2]
[354247627,1740365434284,-500.67494194,0.00013698,2]
[354247629,1740365434294,-611.50478763,0.00013698,2]
[354247631,1740365434303,-503.02451048,0.00013698,2]
[354247633,1740365434315,-500.48748368,0.00013698,2]
[354247636,1740365434329,-502.36537833,0.00013698,2]
[354247638,1740365434342,-501.39526923,0.00013698,2]
[354247641,1740365434355,-500.0,0.00013698,2]
[354247643,1740365434368,-503.35765727,0.00013698,2]
[354247645,1740365434379,-500.0,0.00013698,2]
[354247647,1740365434390,-501.48157336,0.00013698,2]
[354247650,1740365434402,-501.97545783,0.00013698,2]
[354247652,1740365434416,-500.0,0.00013698,2]
[354247654,1740365434427,-507.15772256,0.00013698,2]
[354247656,1740365434442,-501.95464463,0.00013698,2]
[354247659,1740365434454,-500.77283076,0.00013698,2]
[354247661,1740365434466,-500.0,0.00013698,2]
[354247663,1740365434479,-500.0,0.00013698,2]
[354247665,1740365434491,-501.52208851,0.00013698,2]
[354247668,1740365434504,-458.11581475,0.00013698,2]
[354247670,1740365434516,-501.64988289,0.00013698,2]
[354247672,1740365434530,-500.0,0.00013698,2]
[354247674,1740365434542,-500.0,0.00013698,2]
[354247676,1740365434554,-392.61215201,0.00013698,2]
[354247679,1740365434565,-500.35058792,0.00013698,2]
[354247681,1740365434577,-503.52576286,0.00013698,2]
[354247683,1740365434588,-501.09239497,0.00013698,2]
[354247686,1740365434600,-508.16942187,0.00013698,2]
[354247688,1740365434612,-500.0,0.00013698,2]
[354247690,1740365434624,-504.69458893,0.00013698,2]
[354247692,1740365434635,-504.24102831,0.00013698,2]
[354247694,1740365434646,-500.0,0.00013698,2]
[354247696,1740365434656,-506.23726082,0.00013698,2]
[354247698,1740365434666,-507.40606955,0.00013698,2]
[354247701,1740365434677,-502.54246945,0.00013698,2]
[354247703,1740365434688,-500.0,0.00013698,2]
[354247705,1740365434698,-500.52932736,0.00013698,2]
[354247707,1740365434710,-509.53424488,0.00013698,2]
[354247709,1740365434721,-503.17482651,0.00013698,2]
[354247712,1740365434733,-351.91915026,0.00013698,2]
[354247714,1740365434745,-500.81876909,0.00013698,2]
[354247716,1740365434757,-301.03701179,0.00013698,2]
[354247719,1740365434769,-503.45510146,0.00013698,2]
[354247721,1740365434782,-503.38986882,0.00013698,2]
[354247723,1740365434795,-502.24165645,0.00013698,2]
[354247726,1740365434806,-500.0,0.00013698,2]
[354247728,1740365434816,-501.29570365,0.00013698,2]
[354247730,1740365434826,-500.0,0.00013698,2]
[354247732,1740365434836,-501.38998163,0.00013698,2]
[354247734,1740365434847,-500.0,0.00013698,2]
[354247737,1740365434859,-500.73665098,0.00013698,2]
[354247739,1740365434871,-500.0,0.00013698,2]
[354247741,1740365434884,-502.02080644,0.00013698,2]
[354247744,1740365434896,-500.76215581,0.00013698,2]
[354247746,1740365434907,-504.19566018,0.00013698,2]
[354247748,1740365434917,-504.22547008,0.00013698,2]
[354247750,1740365434928,-501.84632961,0.00013698,2]
[354247752,1740365434939,-504.23002405,0.00013698,2]
[354247754,1740365434951,-500.98402793,0.00013698,2]
[354247757,1740365434962,-500.0,0.00013698,2]
[354247759,1740365434973,-500.0,0.00013698,2]
[354247761,1740365434987,-539.8970327,0.00013698,2]
[354247763,1740365435000,-501.10545411,0.00013698,2]
[354247765,1740365435010,-500.0,0.00013698,2]
[354247767,1740365435020,-500.0,0.00013698,2]
[354247769,1740365435030,-276.62836624,0.00013698,2]
[354247771,1740365435040,-500.0,0.00013698,2]
[354247773,1740365435051,-505.86485781,0.00013698,2]
[354247775,1740365435061,-501.51410716,0.00013698,2]
[354247778,1740365435072,-500.0,0.00013698,2]
[354247780,1740365435083,-500.0,0.00013698,2]
[354247782,1740365435094,-501.60107853,0.00013698,2]
[354247784,1740365435105,-501.45178142,0.00013698,2]
[354247786,1740365435115,-220.89834079,0.00013698,2]
[354247788,1740365435128,-500.0,0.00013698,2]
[354247791,1740365435141,-500.0,0.00013698,2]
[354247793,1740365435152,-607.94779166,0.00013698,2]
[354247795,1740365435164,-503.12442197,0.00013698,2]
[354247798,1740365435175,-500.0,0.00013698,2]
[354247800,1740365435186,-500.0,0.00013698,2]
[354247802,1740365435197,-500.0,0.00013698,2]
[354247804,1740365435208,-500.8048254,0.00013698,2]
[354247806,1740365435219,-382.00034945,0.00013698,2]
[354247809,1740365435234,-500.0,0.00013698,2]
[354247811,1740365435245,-500.0,0.00013698,2]
[354247813,1740365435256,-500.0,0.00013698,2]
[354247815,1740365435266,-500.0,0.00013698,2]
[354247817,1740365435277,-503.82160677,0.00013698,2]
[354247819,1740365435288,-500.0,0.00013698,2]
[354247822,1740365435299,-500.0,0.00013698,2]
[354247824,1740365435309,-503.27074712,0.00013698,2]
[354247826,1740365435320,-503.53389472,0.00013698,2]
[354247828,1740365435331,-567.3114313,0.00013698,2]
[354247830,1740365435341,-605.04989008,0.00013698,2]
[354247833,1740365435353,-500.0,0.00013698,2]
[354247835,1740365435363,-500.0,0.00013698,2]
[354247837,1740365435374,-503.93366183,0.00013698,2]
[354247839,1740365435384,-500.0,0.00013698,2]
[354247841,1740365435395,-500.53289274,0.00013698,2]
[354247843,1740365435405,-502.18954616,0.00013698,2]
[354247845,1740365435417,-500.68023492,0.00013698,2]
[354247848,1740365435427,-500.0,0.00013698,2]
[354247850,1740365435441,-500.67267496,0.00013698,2]
[354247852,1740365435452,-500.0,0.00013698,2]
[354247854,1740365435463,-500.79905131,0.00013698,2]
[354247856,1740365435473,-500.0,0.00013698,2]
[354247858,1740365435485,-239.16623068,0.00013698,2]
[354247861,1740365435496,-500.0,0.00013698,2]
[354247875,1740365435506,-500.0,0.00013698,2]
[354247877,1740365435628,-500.0,0.00013698,2]
[354247879,1740365435638,-502.63106191,0.00013698,2]
[354247881,1740365435647,-500.0,0.00013698,2]
[354247883,1740365435656,-483.78439709,0.00013698,2]
[354247885,1740365435667,-500.0,0.00013698,2]
[354247887,1740365435676,-501.54938756,0.00013698,2]
[354247889,1740365435685,-502.31180714,0.00013698,2]
[354247891,1740365435694,-500.0,0.00013698,2]
[354247893,1740365435703,-504.18622297,0.00013698,2]
[354247895,1740365435713,-500.0,0.00013698,2]
[354247897,1740365435722,-500.0,0.00013698,2]
[354247899,1740365435731,-500.0,0.00013698,2]
[354247902,1740365435740,-502.26217817,0.00013698,2]
[354247904,1740365435750,-500.0,0.00013698,2]
[354247906,1740365435759,-500.0,0.00013698,2]
[354247907,1740365435768,-500.0,0.00013698,2]
[354247910,1740365435778,-500.0,0.00013698,2]
[354247912,1740365435787,-500.0,0.00013698,2]
[354247914,1740365435796,-500.0,0.00013698,2]
[354247916,1740365435805,-500.0,0.00013698,2]
[354247918,1740365435814,-501.84827127,0.00013698,2]
[354247920,1740365435823,-500.0,0.00013698,2]
[354247922,1740365435832,-508.81416367,0.00013698,2]
[354247924,1740365435841,-500.0,0.00013698,2]
[354247926,1740365435850,-501.27571847,0.00013698,2]
[354247927,1740365435862,-500.0,0.00013698,2]
[354247930,1740365435872,-500.0,0.00013698,2]
[354247932,1740365435881,-500.0,0.00013698,2]
[354247934,1740365435890,-500.0,0.00013698,2]
[354247936,1740365435899,-1979.58,0.00013698,2]
[354247938,1740365435909,-500.0,0.00013698,2]
[354247940,1740365435918,-500.0,0.00013698,2]
[354247942,1740365435927,-500.0,0.00013698,2]
[354247944,1740365435936,-401.13807528,0.00013698,2]
[354248216,1740365438631,-101.23313436,0.00013698,2]
[354248218,1740365438640,-500.0,0.00013698,2]
[354248220,1740365438650,-500.0,0.00013698,2]
[354248221,1740365438659,-503.40948065,0.00013698,2]
[354248222,1740365438669,-500.0,0.00013698,2]
[354248223,1740365438679,-500.0,0.00013698,2]
[354248224,1740365438688,-500.54370348,0.00013698,2]
[354248225,1740365438698,-500.0,0.00013698,2]
[354248226,1740365438708,-500.0,0.00013698,2]
[354248227,1740365438718,-500.0,0.00013698,2]
[354248228,1740365438727,-500.787943,0.00013698,2]
[354248229,1740365438736,-501.79047507,0.00013698,2]
[354248230,1740365438746,-500.0,0.00013698,2]
[354248231,1740365438756,-501.91692969,0.00013698,2]
[354248232,1740365438765,-500.0,0.00013698,2]
[354248233,1740365438774,-500.0,0.00013698,2]
[354248234,1740365438783,-500.0,0.00013698,2]
[354248235,1740365438793,-500.97045014,0.00013698,2]
[354248236,1740365438802,-500.0,0.00013698,2]
[354248237,1740365438811,-506.55348085,0.00013698,2]
[354248238,1740365438821,-500.0,0.00013698,2]
[354248239,1740365438830,-500.0,0.00013698,2]
[354248240,1740365438839,-500.0,0.00013698,2]
[354248241,1740365438848,-500.0,0.00013698,2]
[354248243,1740365438857,-500.0,0.00013698,2]
[354248244,1740365438867,-500.0,0.00013698,2]
[354248245,1740365438876,-500.0,0.00013698,2]
[354248246,1740365438885,-501.04711796,0.00013698,2]
[354248247,1740365438894,-500.0,0.00013698,2]
[354248248,1740365438904,-500.0,0.00013698,2]
[354248249,1740365438914,-501.79409965,0.00013698,2]
[354248250,1740365438924,-500.0,0.00013698,2]
[354248251,1740365438933,-500.0,0.00013698,2]
[354248252,1740365438942,-500.0,0.00013698,2]
[354248253,1740365438951,-500.0,0.00013698,2]
[354248254,1740365438961,-500.0,0.00013698,2]
[354248255,1740365438970,-500.0,0.00013698,2]
[354248256,1740365438979,-591.57814628,0.00013698,2]
[354248257,1740365438989,-1866.45,0.00013698,2]
[354248258,1740365438998,-1866.45,0.00013698,2]
[354248259,1740365439007,-1866.45,0.00013698,2]
[354248260,1740365439016,-1866.45,0.00013698,2]
[354248261,1740365439025,-500.0,0.00013698,2]
[354248262,1740365439034,-1866.45,0.00013698,2]
[354248264,1740365439043,-500.0,0.00013698,2]
[354248266,1740365439052,-500.0,0.00013698,2]
[354248268,1740365439061,-504.94132277,0.00013698,2]
[354248270,1740365439070,-504.33146787,0.00013698,2]
[354248272,1740365439079,-500.0,0.00013698,2]
[354248274,1740365439088,-500.0,0.00013698,2]
[354248276,1740365439097,-502.76711735,0.00013698,2]
[354248278,1740365439106,-501.55703243,0.00013698,2]
[354248280,1740365439115,-500.0,0.00013698,2]
[354248282,1740365439124,-503.78091031,0.00013698,2]
[354248284,1740365439134,-500.0,0.00013698,2]
[354248286,1740365439143,-500.0,0.00013698,2]
[354248288,1740365439152,-500.0,0.00013698,2]
[354248290,1740365439162,-500.0,0.00013698,2]
[354248292,1740365439171,-500.0,0.00013698,2]
[354248295,1740365439181,-500.0,0.00013698,2]
[354248296,1740365439189,-500.0,0.00013698,2]
[354248298,1740365439199,-501.59644892,0.00013698,2]
[354248300,1740365439208,-500.0,0.00013698,2]
[354248303,1740365439219,-501.1596238,0.00013698,2]
[354248305,1740365439229,-502.02335579,0.00013698,2]
[354248306,1740365439238,-500.0,0.00013698,2]
[354248309,1740365439248,-500.86838248,0.00013698,2]
[354248311,1740365439258,-5199.93,0.00013698,2]
[354248313,1740365439267,-501.18213648,0.00013698,2]
[354248315,1740365439276,-500.0,0.00013698,2]
[354248317,1740365439286,-501.60526529,0.00013698,2]
[354248319,1740365439295,-502.45658752,0.00013698,2]
[354248321,1740365439304,-501.41436905,0.00013698,2]
[354248323,1740365439313,-501.80515788,0.00013698,2]
[354248325,1740365439322,-504.19459669,0.00013698,2]
[354248327,1740365439331,-500.0,0.00013698,2]
[354248329,1740365439340,-502.46023905,0.00013698,2]
[354248331,1740365439349,-500.0,0.00013698,2]
[354248333,1740365439359,-500.0,0.00013698,2]
[354248335,1740365439368,-502.70423658,0.00013698,2]
[354248337,1740365439378,-500.0,0.00013698,2]
[354248339,1740365439387,-501.74074493,0.00013698,2]
[354248341,1740365439396,-500.0,0.00013698,2]
[354248343,1740365439405,-504.08562476,0.00013698,2]
[354248345,1740365439416,-501.93952,0.00013698,2]
[354248347,1740365439426,-500.0,0.00013698,2]
[354248349,1740365439437,-500.0,0.00013698,2]
[354248351,1740365439449,-500.0,0.00013698,2]
[354248353,1740365439458,-545.33131825,0.00013698,2]
[354248355,1740365439467,-502.87608747,0.00013698,2]
[354248357,1740365439477,-501.0085306,0.00013698,2]
[354248359,1740365439487,-500.0,0.00013698,2]
[354248361,1740365439496,-502.44310341,0.00013698,2]
[354248363,1740365439506,-500.0,0.00013698,2]
[354248365,1740365439515,-500.0,0.00013698,2]
[354248367,1740365439524,-500.0,0.00013698,2]
[354248369,1740365439534,-500.0,0.00013698,2]
[354248371,1740365439543,-500.0,0.00013698,2]
[354248373,1740365439552,-500.0,0.00013698,2]
[354248375,1740365439562,-834.64,0.00013698,2]
[354248378,1740365439571,-501.44927576,0.00013698,2]
[354248380,1740365439580,-503.95295437,0.00013698,2]
[354248382,1740365439589,-500.0,0.00013698,2]
[354248384,1740365439599,-610.6334112,0.00013698,2]
[354248386,1740365439608,-501.47801918,0.00013698,2]
[354248388,1740365439618,-500.0,0.00013698,2]
[354248390,1740365439628,-500.0,0.00013698,2]
[354248392,1740365439638,-500.0,0.00013698,2]
[354248394,1740365439647,-690.43,0.00013698,2]
[354248396,1740365439657,-500.0,0.00013698,2]
[354248398,1740365439668,-316.45491085,0.00013698,2]
[354248400,1740365439677,-991.35,0.00013698,2]
[354248402,1740365439687,-435.61221339,0.00013698,2]
[354248404,1740365439695,-500.0,0.00013698,2]
[354248406,1740365439705,-508.43489702,0.00013698,2]
[354248408,1740365439713,-500.0,0.00013698,2]
[354248410,1740365439723,-210.06529181,0.00013698,2]
[354248412,1740365439732,-500.0,0.00013698,2]
[354248414,1740365439741,-500.0,0.00013698,2]
[354248416,1740365439751,-501.21726182,0.00013698,2]
[354248418,1740365439760,-502.30151046,0.00013698,2]
[354248420,1740365439769,-501.22224633,0.00013698,2]
[354248422,1740365439779,-500.55571091,0.00013698,2]
[354248424,1740365439788,-501.13111731,0.00013698,2]
[354248426,1740365439798,-298.63629636,0.00013698,2]
[354248428,1740365439807,-500.0,0.00013698,2]
[354248430,1740365439816,-500.0,0.00013698,2]
[354248432,1740365439826,-500.0,0.00013698,2]
[354248434,1740365439836,-500.0,0.00013698,2]
[354248436,1740365439845,-500.0,0.00013698,2]
[354248438,1740365439854,-316.91118087,0.00013698,2]
[354248440,1740365439863,-500.0,0.00013698,2]
[354248442,1740365439872,-500.0,0.00013698,2]
[354248444,1740365439881,-602.35711593,0.00013698,2]
[354248446,1740365439891,-500.0,0.00013698,2]
[354248448,1740365439900,-503.7174134,0.00013698,2]
[354248450,1740365439908,-501.92526675,0.00013698,2]
[354248452,1740365439919,-501.52053126,0.00013698,2]
[354248454,1740365439928,-500.0,0.00013698,2]
[354248456,1740365439937,-500.0,0.00013698,2]
[354248458,1740365439946,-502.36258161,0.00013698,2]
[354248460,1740365439955,-500.0,0.00013698,2]
[354248462,1740365439964,-500.0,0.00013698,2]
[354248464,1740365439973,-500.0,0.00013698,2]
[354248466,1740365439982,-500.0,0.00013698,2]
[354248468,1740365439991,-500.0,0.00013698,2]
[354248470,1740365440000,-500.0,0.00013698,2]
[354248472,1740365440009,-502.68940602,0.00013698,2]
[354248474,1740365440019,-500.0,0.00013698,2]
[354248476,1740365440029,-500.0,0.00013698,2]
[354248478,1740365440039,-500.0,0.00013698,2]
[354248480,1740365440048,-500.0,0.00013698,2]
[354248482,1740365440057,-503.00327338,0.00013698,2]
[354248484,1740365440066,-501.90672993,0.00013698,2]
[354248486,1740365440076,-500.0,0.00013698,2]
[354248488,1740365440085,-495.3103497,0.00013698,2]
[354248491,1740365440098,-4.6896503,0.00013698,2]
[354248493,1740365440108,-501.97834241,0.00013698,2]
[354248495,1740365440117,-501.97943553,0.00013698,2]
[354248497,1740365440126,-500.0,0.00013698,2]
[354248499,1740365440135,-501.11989872,0.00013698,2]
[354248501,1740365440144,-500.0,0.00013698,2]
[354248503,1740365440153,-510.36379561,0.00013698,2]
[354248505,1740365440164,-500.0,0.00013698,2]
[354248507,1740365440173,-500.0,0.00013698,2]
[354248509,1740365440182,-500.0,0.00013698,2]
[354248511,1740365440192,-500.0,0.00013698,2]
[354248513,1740365440201,-500.0,0.00013698,2]
[354248515,1740365440211,-501.13745167,0.00013698,2]
[354248517,1740365440220,-501.72986872,0.00013698,2]
[354248537,1740365440319,-501.30313146,0.00013698,2]
[354248541,1740365440329,-500.0,0.00013698,2]
[354248544,1740365440340,-505.78893462,0.00013698,2]
[354248547,1740365440349,-500.0,0.00013698,2]
[354248550,1740365440358,-506.63121742,0.00013698,2]
[354248553,1740365440368,-500.0,0.00013698,2]
[354248556,1740365440377,-500.0,0.00013698,2]
[354248559,1740365440386,-1681.1201521,0.00013699,2]
[354248562,1740365440395,-172.074488,0.00013699,2]
[354248565,1740365440404,-500.0,0.00013699,2]
[354248567,1740365440415,-301.54197758,0.00013699,2]
[354248571,1740365440425,-500.0,0.00013699,2]
[354248574,1740365440435,-500.0,0.00013699,2]
[354248577,1740365440449,-500.0,0.00013699,2]
[354248580,1740365440459,-500.0,0.00013699,2]
[354248583,1740365440470,-500.0,0.00013699,2]
[354248586,1740365440480,-500.0,0.00013699,2]
[354248589,1740365440491,-298.47658336,0.00013699,2]
[354248593,1740365440501,-500.0,0.00013699,2]
[354248596,1740365440511,-500.0,0.00013699,2]
[354248599,1740365440521,-500.0,0.00013699,2]
[354248602,1740365440530,-500.0,0.00013699,2]
[354248605,1740365440539,-500.0,0.00013699,2]
[354248608,1740365440548,-500.0,0.00013699,2]
[354248610,1740365440558,-500.0,0.00013699,2]
[354248614,1740365440567,-152.0,0.00013743,2]
[354248617,1740365440576,-500.0,0.00013779,2]
[354248619,1740365440585,-500.0,0.00013779,2]
[354248621,1740365440595,-1866.45,0.00013779,2]
[354248623,1740365440604,-1866.45,0.00013779,2]
[354248626,1740365440614,-500.0,0.0001378,2]